fUST/lending_fUST_20250514
["ID","MTS","AMOUNT","RATE_DAILY","PERIOD"]
[360958638,1747163442179,-179.9460162,0.00013821,2]
[360958640,1747163442188,-150.0,0.00013862,2]
[360958642,1747163442198,-546.0,0.0001389,2]
[360958644,1747163442208,-2237.0,0.0001389,2]
[360958646,1747163442218,-706.0,0.0001389,2]
[360958648,1747163442228,-151.0,0.000139,2]
[360958650,1747163442237,-151.0,0.000139,2]
[360958651,1747163442248,-151.0,0.000139,2]
[360958652,1747163442257,-151.0,0.000139,2]
[360958653,1747163442269,-800.0,0.00013917,2]
[360958654,1747163442279,-320.0,0.00013917,2]
[360958655,1747163442289,-652.61296533,0.00013919,2]
[360958656,1747163442299,-52102.47314828,0.0001397,3]
[360958657,1747163442309,-257572.45807179,0.00013971,2]
[360958658,1747163442320,-212.19047112,0.00013972,3]
[360958659,1747163442330,-151.0,0.00013972,2]
[360958660,1747163442340,-151.0,0.00013972,2]
[360958661,1747163442351,-151.0,0.00013972,2]
[360958662,1747163442361,-219.405713,0.00013972,2]
[360958663,1747163442371,-219.405713,0.00013972,2]
[360958664,1747163442381,-219.405713,0.00013972,2]
[360958665,1747163442391,-219.405713,0.00013972,2]
[360958666,1747163442400,-400.0,0.00013972,2]
[360958667,1747163442410,-1129.64,0.00013972,2]
[360958668,1747163442420,-400.0,0.00013972,2]
[360958669,1747163442429,-273.90303131,0.00013972,2]
[360958670,1747163442439,-400.0,0.00013972,2]
[360958671,1747163442449,-400.0,0.00013972,2]
[360958672,1747163442459,-638.35,0.00013972,2]
[360958673,1747163442469,-400.0,0.00013972,2]
[360958674,1747163442478,-400.0,0.00013972,2]
[360958675,1747163442487,-1112.99,0.00013972,2]
[360958676,1747163442497,-400.0,0.00013972,2]
[360958677,1747163442506,-400.0,0.00013972,2]
[360958678,1747163442515,-400.0,0.00013972,2]
[360958679,1747163442525,-504.44681276,0.00013972,2]
[360958680,1747163442534,-400.0,0.00013972,2]
[360958681,1747163442544,-254.21625786,0.00013972,2]
[360958682,1747163442553,-400.0,0.00013972,2]
[360958683,1747163442564,-400.0,0.00013972,2]
[360958684,1747163442574,-400.0,0.00013972,2]
[360958685,1747163442584,-487.6,0.00013972,2]
[360958686,1747163442594,-400.0,0.00013972,2]
[360958687,1747163442603,-400.0,0.00013972,2]
[360958688,1747163442613,-151.0,0.00013972,2]
[360958689,1747163442622,-151.0,0.00013972,2]
[360958690,1747163442631,-400.0,0.00013972,2]
[360958691,1747163442641,-1712.73,0.00013972,2]
[360958692,1747163442651,-400.0,0.00013972,2]
[360958693,1747163442662,-433.09,0.00013972,2]
[360958694,1747163442671,-246.168612,0.00013972,2]
[360958695,1747163442682,-400.0,0.00013972,2]
[360958696,1747163442691,-473.82,0.00013972,2]
[360958697,1747163442701,-400.0,0.00013972,2]
[360958698,1747163442711,-400.0,0.00013972,2]
[360958699,1747163442720,-400.0,0.00013972,2]
[360958700,1747163442730,-400.0,0.00013972,2]
[360958701,1747163442740,-400.0,0.00013972,2]
[360958702,1747163442749,-400.0,0.00013972,2]
[360958703,1747163442760,-400.0,0.00013972,2]
[360958704,1747163442769,-400.0,0.00013972,2]
[360958705,1747163442779,-400.0,0.00013972,2]
[360958706,1747163442788,-400.0,0.00013972,2]
[360958707,1747163442798,-151.0,0.00013972,2]
[360958708,1747163442807,-151.0,0.00013972,2]
[360958709,1747163442818,-400.0,0.00013972,2]
[360958710,1747163442827,-151.0,0.00013972,2]
[360958711,1747163442837,-151.0,0.00013972,2]
[360958712,1747163442846,-400.0,0.00013972,2]
[360958713,1747163442857,-400.0,0.00013972,2]
[360958714,1747163442866,-400.0,0.00013972,2]
[360958715,1747163442876,-400.0,0.00013972,2]
[360958716,1747163442885,-400.0,0.00013972,2]
[360958717,1747163442895,-400.0,0.00013972,2]
[360958718,1747163442904,-400.0,0.00013972,2]
[360958719,1747163442913,-400.0,0.00013972,2]
[360958720,1747163442923,-400.0,0.00013972,2]
[360958721,1747163442932,-461.32,0.00013972,2]
[360958722,1747163442941,-656.28,0.00013972,2]
[360958723,1747163442952,-400.0,0.00013972,2]
[360958724,1747163442961,-413.64927178,0.00013972,2]
[360958725,1747163442972,-400.0,0.00013972,2]
[360958726,1747163442982,-400.0,0.00013972,2]
[360958727,1747163442992,-400.0,0.00013972,2]
[360958728,1747163443002,-400.0,0.00013972,2]
[360958729,1747163443012,-443.79,0.00013972,2]
[360958730,1747163443022,-151.0,0.00013972,2]
[360958731,1747163443031,-151.0,0.00013972,2]
[360958732,1747163443041,-151.0,0.00013972,2]
[360958733,1747163443050,-400.0,0.00013972,2]
[360958734,1747163443059,-400.0,0.00013972,2]
[360958735,1747163443070,-151.0,0.00013972,2]
[360958736,1747163443080,-238.85757889,0.00013972,2]
[360958737,1747163443090,-400.0,0.00013972,2]
[360958738,1747163443100,-151.0,0.00013972,2]
[360958739,1747163443109,-400.0,0.00013972,2]
[360958740,1747163443119,-151.0,0.00013972,2]
[360958741,1747163443128,-161.213381,0.00013972,2]
[360958742,1747163443138,-400.0,0.00013972,2]
[360958743,1747163443147,-509.19,0.00013972,2]
[360958744,1747163443157,-400.0,0.00013972,2]
[360958746,1747163443166,-400.0,0.00013972,2]
[360958747,1747163443176,-400.0,0.00013972,2]
[360958748,1747163443185,-400.0,0.00013972,2]
[360958749,1747163443194,-400.0,0.00013972,2]
[360958751,1747163443204,-622.9,0.00013972,2]
[360958752,1747163443214,-169.27790008,0.00013972,2]
[360958755,1747163443224,-400.0,0.00013972,2]
[360958758,1747163443234,-400.0,0.00013972,2]
[360958761,1747163443243,-358.284771,0.00013972,2]
[360958763,1747163443253,-358.284771,0.00013972,2]
[360958765,1747163443264,-400.0,0.00013972,2]
[360958767,1747163443277,-358.284771,0.00013972,2]
[360958769,1747163443287,-358.284771,0.00013972,2]
[360958771,1747163443297,-678.63,0.00013972,2]
[360958773,1747163443308,-400.0,0.00013972,2]
[360958775,1747163443318,-358.0,0.00013972,2]
[360958777,1747163443327,-400.08,0.00013972,2]
[360958779,1747163443337,-322.465783,0.00013972,2]
[360958781,1747163443347,-322.465783,0.00013972,2]
[360958783,1747163443357,-322.465783,0.00013972,2]
[360958786,1747163443367,-400.0,0.00013972,2]
[360958789,1747163443377,-836.03,0.00013972,2]
[360958792,1747163443386,-322.465783,0.00013972,2]
[360958794,1747163443395,-322.465783,0.00013972,2]
[360958797,1747163443405,-322.465783,0.00013972,2]
[360958799,1747163443415,-400.0,0.00013972,2]
[360958800,1747163443424,-469.11,0.00013972,2]
[360958801,1747163443434,-400.0,0.00013972,2]
[360958802,1747163443443,-400.0,0.00013972,2]
[360958803,1747163443454,-400.0,0.00013972,2]
[360958804,1747163443464,-400.0,0.00013972,2]
[360958805,1747163443474,-400.0,0.00013972,2]
[360958807,1747163443484,-1941.75,0.00013972,2]
[360958808,1747163443493,-151.0,0.00013972,2]
[360958810,1747163443503,-492.09,0.00013972,2]
[360958812,1747163443513,-151.0,0.00013972,2]
[360958814,1747163443524,-400.0,0.00013972,2]
[360958816,1747163443534,-400.0,0.00013972,2]
[360958818,1747163443543,-400.0,0.00013972,2]
[360958820,1747163443553,-400.0,0.00013972,2]
[360958822,1747163443563,-604.34,0.00013972,2]
[360958824,1747163443573,-400.0,0.00013972,2]
[360958826,1747163443582,-400.0,0.00013972,2]
[360958828,1747163443592,-400.0,0.00013972,2]
[360958830,1747163443602,-743.05,0.00013972,2]
[360958832,1747163443611,-959.27,0.00013972,2]
[360958833,1747163443621,-400.0,0.00013972,2]
[360958834,1747163443630,-400.0,0.00013972,2]
[360958835,1747163443640,-912.38,0.00013972,2]
[360958836,1747163443649,-400.0,0.00013972,2]
[360958837,1747163443659,-1015.98,0.00013972,2]
[360958838,1747163443669,-1522.25,0.00013972,2]
[360958840,1747163443679,-400.0,0.00013972,2]
[360958843,1747163443689,-400.0,0.00013972,2]
[360958845,1747163443699,-400.0,0.00013972,2]
[360958847,1747163443709,-433.62,0.00013972,2]
[360958849,1747163443720,-400.0,0.00013972,2]
[360958851,1747163443730,-400.0,0.00013972,2]
[360958853,1747163443740,-400.0,0.00013972,2]
[360958855,1747163443750,-400.0,0.00013972,2]
[360958857,1747163443760,-1000.0,0.00013972,2]
[360958859,1747163443770,-689.25,0.00013972,2]
[360958861,1747163443779,-518.68,0.00013972,2]
[360958863,1747163443789,-151.0,0.00013972,2]
[360958866,1747163443800,-400.0,0.00013972,2]
[360958868,1747163443811,-151.0,0.00013972,2]
[360958870,1747163443822,-151.0,0.00013972,2]
[360958872,1747163443832,-1615.93,0.00013972,2]
[360958874,1747163443842,-400.0,0.00013972,2]
[360958876,1747163443852,-2181.47,0.00013972,2]
[360958878,1747163443862,-400.0,0.00013972,2]
[360958880,1747163443872,-400.0,0.00013972,2]
[360958883,1747163443883,-400.0,0.00013972,2]
[360958885,1747163443892,-400.0,0.00013972,2]
[360958887,1747163443902,-449.99,0.00013972,2]
[360958889,1747163443912,-400.0,0.00013972,2]
[360958891,1747163443922,-400.0,0.00013972,2]
[360958893,1747163443933,-495.98,0.00013972,2]
[360958895,1747163443942,-887.12,0.00013972,2]
[360958897,1747163443953,-400.0,0.00013972,2]
[360958899,1747163443963,-400.0,0.00013972,2]
[360958901,1747163443973,-400.0,0.00013972,2]
[360958903,1747163443983,-400.0,0.00013972,2]
[360958905,1747163443993,-400.0,0.00013972,2]
[360958908,1747163444003,-1045.98,0.00013972,2]
[360958910,1747163444013,-696.8,0.00013972,2]
[360958912,1747163444023,-705.19,0.00013972,2]
[360958914,1747163444033,-400.0,0.00013972,2]
[360958916,1747163444043,-400.0,0.00013972,2]
[360958918,1747163444053,-266.59070441,0.00013972,2]
[360958920,1747163444063,-400.0,0.00013972,2]
[360958922,1747163444074,-400.0,0.00013972,2]
[360958924,1747163444083,-400.0,0.00013972,2]
[360958926,1747163444094,-152.788761,0.00013972,2]
[360958927,1747163444104,-400.0,0.00013972,2]
[360958928,1747163444114,-400.0,0.00013972,2]
[360958929,1747163444123,-400.0,0.00013972,2]
[360958930,1747163444134,-400.0,0.00013972,2]
[360958931,1747163444144,-400.0,0.00013972,2]
[360958933,1747163444153,-400.0,0.00013972,2]
[360958935,1747163444163,-400.0,0.00013972,2]
[360958937,1747163444173,-400.0,0.00013972,2]
[360958938,1747163444183,-400.0,0.00013972,2]
[360958939,1747163444193,-444.11,0.00013972,2]
[360958940,1747163444202,-400.0,0.00013972,2]
[360958941,1747163444213,-400.0,0.00013972,2]
[360958942,1747163444223,-400.0,0.00013972,2]
[360958943,1747163444233,-755.42,0.00013972,2]
[360958944,1747163444243,-591.77,0.00013972,2]
[360958945,1747163444254,-400.0,0.00013972,2]
[360958946,1747163444265,-557.84,0.00013972,2]
[360958947,1747163444279,-1109.74,0.00013972,2]
[360958948,1747163444290,-400.0,0.00013972,2]
[360958949,1747163444300,-400.0,0.00013972,2]
[360958950,1747163444311,-1060.62,0.00013972,2]
[360958951,1747163444322,-635.56,0.00013972,2]
[360958952,1747163444332,-400.0,0.00013972,2]
[360958953,1747163444342,-350.64481526,0.00013972,2]
[360958954,1747163444352,-400.0,0.00013972,2]
[360958955,1747163444363,-400.0,0.00013972,2]
[360958956,1747163444373,-400.0,0.00013972,2]
[360958957,1747163444384,-400.0,0.00013972,2]
[360958958,1747163444394,-424.43,0.00013972,2]
[360958959,1747163444403,-503.45,0.00013972,2]
[360958960,1747163444414,-495.07,0.00013972,2]
[360958961,1747163444424,-217.42104227,0.00013972,2]
[360958962,1747163444435,-794.03,0.00013972,2]
[360958963,1747163444444,-400.0,0.00013972,2]
[360958964,1747163444454,-967.8,0.00013972,2]
[360958965,1747163444464,-400.0,0.00013972,2]
[360958966,1747163444474,-151.0,0.00013972,2]
[360958967,1747163444484,-400.0,0.00013972,2]
[360958968,1747163444494,-151.0,0.00013972,2]
[360958969,1747163444504,-503.63,0.00013972,2]
[360958970,1747163444514,-400.0,0.00013972,2]
[360958971,1747163444525,-400.0,0.00013972,2]
[360958972,1747163444536,-151.0,0.00013972,2]
[360958973,1747163444546,-400.0,0.00013972,2]
[360958974,1747163444557,-360.31830166,0.00013972,2]
[360958975,1747163444568,-400.0,0.00013972,2]
[360958976,1747163444579,-400.0,0.00013972,2]
[360958977,1747163444589,-400.0,0.00013972,2]
[360958978,1747163444600,-400.0,0.00013972,2]
[360958979,1747163444610,-400.0,0.00013972,2]
[360958980,1747163444620,-654.87,0.00013972,2]
[360958981,1747163444630,-400.0,0.00013972,2]
[360958982,1747163444640,-400.0,0.00013972,2]
[360958983,1747163444650,-495.54,0.00013972,2]
[360958984,1747163444660,-400.0,0.00013972,2]
[360958985,1747163444670,-507.83,0.00013972,2]
[360958986,1747163444680,-400.0,0.00013972,2]
[360958987,1747163444690,-400.0,0.00013972,2]
[360958988,1747163444701,-400.0,0.00013972,2]
[360958989,1747163444711,-400.0,0.00013972,2]
[360958990,1747163444721,-400.0,0.00013972,2]
[360958991,1747163444732,-400.0,0.00013972,2]
[360958992,1747163444742,-738.84,0.00013972,2]
[360958993,1747163444752,-400.0,0.00013972,2]
[360958994,1747163444762,-400.0,0.00013972,2]
[360958995,1747163444772,-400.0,0.00013972,2]
[360958996,1747163444783,-517.79,0.00013972,2]
[360958997,1747163444794,-400.0,0.00013972,2]
[360958998,1747163444804,-400.0,0.00013972,2]
[360958999,1747163444816,-400.0,0.00013972,2]
[360959000,1747163444826,-400.0,0.00013972,2]
[360959001,1747163444836,-413.92,0.00013972,2]
[360959002,1747163444846,-400.0,0.00013972,2]
[360959003,1747163444856,-400.0,0.00013972,2]
[360959004,1747163444867,-400.0,0.00013972,2]
[360959005,1747163444877,-462.41,0.00013972,2]
[360959006,1747163444888,-400.0,0.00013972,2]
[360959007,1747163444898,-400.0,0.00013972,2]
[360959008,1747163444908,-400.0,0.00013972,2]
[360959009,1747163444918,-400.0,0.00013972,2]
[360959010,1747163444928,-400.0,0.00013972,2]
[360959011,1747163444939,-400.0,0.00013972,2]
[360959012,1747163444949,-525.86,0.00013972,2]
[360959013,1747163444959,-1468.38,0.00013972,2]
[360959014,1747163444969,-515.1,0.00013972,2]
[360959015,1747163444979,-621.34,0.00013972,2]
[360959016,1747163444989,-487.0002271,0.00013972,2]
[360959017,1747163444999,-400.0,0.00013972,2]
[360959018,1747163445010,-400.0,0.00013972,2]
[360959019,1747163445021,-400.0,0.00013972,2]
[360959020,1747163445032,-400.0,0.00013972,2]
[360959021,1747163445042,-400.0,0.00013972,2]
[360959022,1747163445053,-900.06,0.00013972,2]
[360959023,1747163445063,-400.0,0.00013972,2]
[360959024,1747163445074,-1050.43,0.00013972,2]
[360959025,1747163445084,-400.0,0.00013972,2]
[360959026,1747163445094,-400.0,0.00013972,2]
[360959027,1747163445104,-1087.38,0.00013972,2]
[360959028,1747163445116,-773.42,0.00013972,2]
[360959029,1747163445127,-400.0,0.00013972,2]
[360959030,1747163445138,-400.0,0.00013972,2]
[360959031,1747163445148,-1489.52,0.00013972,2]
[360959032,1747163445159,-400.0,0.00013972,2]
[360959033,1747163445169,-416.33006213,0.00013972,2]
[360959034,1747163445180,-400.0,0.00013972,2]
[360959035,1747163445190,-539.12081235,0.00013972,2]
[360959036,1747163445200,-410.7449076,0.00013972,2]
[360959037,1747163445212,-556.02,0.00013972,2]
[360959038,1747163445223,-151.0,0.00013972,2]
[360959039,1747163445234,-151.0,0.00013972,2]
[360959040,1747163445243,-151.0,0.00013972,2]
[360959041,1747163445254,-400.0,0.00013972,2]
[360959042,1747163445265,-400.0,0.00013972,2]
[360959043,1747163445278,-151.0,0.00013972,2]
[360959044,1747163445288,-400.0,0.00013972,2]
[360959045,1747163445299,-151.0,0.00013972,2]
[360959046,1747163445311,-151.0,0.00013972,2]
[360959047,1747163445324,-400.0,0.00013972,2]
[360959048,1747163445334,-876.0,0.00013972,2]
[360959049,1747163445345,-400.0,0.00013972,2]
[360959050,1747163445358,-400.0,0.00013972,2]
[360959051,1747163445369,-400.0,0.00013972,2]
[360959052,1747163445379,-400.0,0.00013972,2]
[360959053,1747163445389,-400.0,0.00013972,2]
[360959054,1747163445400,-400.0,0.00013972,2]
[360959055,1747163445410,-1335.22,0.00013972,2]
[360959056,1747163445420,-400.0,0.00013972,2]
[360959057,1747163445430,-400.0,0.00013972,2]
[360959058,1747163445440,-400.0,0.00013972,2]
[360959059,1747163445450,-1127.63,0.00013972,2]
[360959060,1747163445460,-468.37,0.00013972,2]
[360959061,1747163445471,-400.0,0.00013972,2]
[360959062,1747163445481,-851.78,0.00013972,2]
[360959063,1747163445491,-420.01262633,0.00013972,2]
[360959064,1747163445501,-400.0,0.00013972,2]
[360959065,1747163445511,-400.0,0.00013972,2]
[360959066,1747163445521,-400.0,0.00013972,2]
[360959067,1747163445531,-400.0,0.00013972,2]
[360959068,1747163445541,-400.0,0.00013972,2]
[360959069,1747163445551,-400.0,0.00013972,2]
[360959070,1747163445561,-443.57,0.00013972,2]
[360959071,1747163445573,-598.0,0.00013972,2]
[360959072,1747163445583,-400.0,0.00013972,2]
[360959073,1747163445593,-151.0,0.00013972,2]
[360959074,1747163445603,-151.0,0.00013972,2]
[360959075,1747163445613,-151.0,0.00013972,2]
[360959076,1747163445622,-151.0,0.00013972,2]
[360959077,1747163445632,-151.0,0.00013972,2]
[360959078,1747163445642,-151.0,0.00013972,2]
[360959079,1747163445652,-1853.3,0.00013972,2]
[360959080,1747163445662,-151.0,0.00013972,2]
[360959081,1747163445674,-151.0,0.00013972,2]
[360959082,1747163445684,-158.378588,0.00013972,2]
[360959083,1747163445694,-611.04,0.00013972,2]
[360959084,1747163445704,-400.0,0.00013972,2]
[360959085,1747163445714,-400.0,0.00013972,2]
[360959086,1747163445724,-400.0,0.00013972,2]
[360959087,1747163445734,-151.0,0.00013972,2]
[360959088,1747163445744,-151.0,0.00013972,2]
[360959089,1747163445754,-151.0,0.00013972,2]
[360959090,1747163445765,-500.0,0.00013972,2]
[360959091,1747163445775,-400.0,0.00013972,2]
[360959092,1747163445786,-400.0,0.00013972,2]
[360959093,1747163445796,-539.51,0.00013972,2]
[360959094,1747163445807,-431.84,0.00013972,2]
[360959095,1747163445817,-913.94,0.00013972,2]
[360959096,1747163445827,-151.0,0.00013972,2]
[360959097,1747163445837,-151.0,0.00013972,2]
[360959098,1747163445848,-690.21,0.00013972,2]
[360959099,1747163445858,-960.23,0.00013972,2]
[360959100,1747163445868,-151.0,0.00013972,2]
[360959101,1747163445879,-400.0,0.00013972,2]
[360959102,1747163445889,-400.0,0.00013972,2]
[360959103,1747163445899,-400.0,0.00013972,2]
[360959104,1747163445909,-487.98118317,0.00013972,2]
[360959105,1747163445920,-400.0,0.00013972,2]
[360959106,1747163445930,-3210.06,0.00013972,2]
[360959107,1747163445941,-433.99,0.00013972,2]
[360959108,1747163445951,-400.0,0.00013972,2]
[360959109,1747163445962,-1175.15,0.00013972,2]
[360959110,1747163445973,-400.0,0.00013972,2]
[360959111,1747163445983,-400.0,0.00013972,2]
[360959113,1747163445993,-562.23,0.00013972,2]
[360959114,1747163446004,-400.0,0.00013972,2]
[360959125,1747163446272,-1992.05,0.00013972,2]
[360959126,1747163446301,-400.0,0.00013972,2]
[360959127,1747163446311,-400.0,0.00013972,2]
[360959128,1747163446326,-1264.508187,0.00013972,2]
[360959129,1747163446336,-1264.508187,0.00013972,2]
[360959130,1747163446347,-400.0,0.00013972,2]
[360959131,1747163446357,-1264.508187,0.00013972,2]
[360959133,1747163446367,-151.0,0.00013972,2]
[360959134,1747163446377,-151.0,0.00013972,2]
[360959135,1747163446387,-462.41,0.00013972,2]
[360959136,1747163446396,-151.0,0.00013972,2]
[360959137,1747163446406,-1264.508187,0.00013972,2]
[360959138,1747163446416,-1264.508187,0.00013972,2]
[360959140,1747163446425,-1264.508187,0.00013972,2]
[360959141,1747163446435,-400.0,0.00013972,2]
[360959142,1747163446445,-1070.01,0.00013972,2]
[360959143,1747163446455,-400.0,0.00013972,2]
[360959144,1747163446465,-637.72,0.00013972,2]
[360959145,1747163446474,-400.0,0.00013972,2]
[360959146,1747163446484,-1961.25,0.00013972,2]
[360959148,1747163446493,-400.0,0.00013972,2]
[360959149,1747163446503,-400.0,0.00013972,2]
[360959150,1747163446514,-400.0,0.00013972,2]
[360959151,1747163446524,-400.0,0.00013972,2]
[360959152,1747163446534,-400.0,0.00013972,2]
[360959153,1747163446544,-484.34,0.00013972,2]
[360959154,1747163446556,-400.0,0.00013972,2]
[360959155,1747163446567,-1393.04,0.00013972,2]
[360959156,1747163446580,-400.0,0.00013972,2]
[360959157,1747163446589,-604.84,0.00013972,2]
[360959158,1747163446599,-400.0,0.00013972,2]
[360959159,1747163446609,-400.0,0.00013972,2]
[360959160,1747163446618,-1545.27,0.00013972,2]
[360959161,1747163446628,-460.53,0.00013972,2]
[360959162,1747163446638,-400.0,0.00013972,2]
[360959163,1747163446648,-520.75,0.00013972,2]
[360959164,1747163446657,-400.0,0.00013972,2]
[360959165,1747163446667,-2436.04,0.00013972,2]
[360959166,1747163446676,-460.01,0.00013972,2]
[360959167,1747163446687,-400.0,0.00013972,2]
[360959168,1747163446697,-400.0,0.00013972,2]
[360959169,1747163446707,-400.0,0.00013972,2]
[360959170,1747163446716,-400.0,0.00013972,2]
[360959171,1747163446726,-400.0,0.00013972,2]
[360959172,1747163446736,-400.0,0.00013972,2]
[360959173,1747163446746,-400.0,0.00013972,2]
[360959174,1747163446757,-400.0,0.00013972,2]
[360959175,1747163446767,-981.95,0.00013972,2]
[360959176,1747163446777,-1422.81,0.00013972,2]
[360959177,1747163446787,-400.0,0.00013972,2]
[360959178,1747163446797,-409.86,0.00013972,2]
[360959179,1747163446806,-490.56,0.00013972,2]
[360959180,1747163446816,-400.0,0.00013972,2]
[360959181,1747163446827,-914.31,0.00013972,2]
[360959182,1747163446836,-400.0,0.00013972,2]
[360959183,1747163446846,-532.14,0.00013972,2]
[360959184,1747163446856,-3472.62,0.00013972,2]
[360959185,1747163446866,-2931.2,0.00013972,2]
[360959186,1747163446876,-899.54,0.00013972,2]
[360959187,1747163446886,-400.0,0.00013972,2]
[360959188,1747163446896,-1823.91,0.00013972,2]
[360959189,1747163446906,-400.0,0.00013972,2]
[360959190,1747163446916,-400.0,0.00013972,2]
[360959191,1747163446926,-1331.25,0.00013972,2]
[360959192,1747163446936,-3093.52,0.00013972,2]
[360959193,1747163446946,-453.73,0.00013972,2]
[360959194,1747163446955,-400.0,0.00013972,2]
[360959195,1747163446965,-1096.92,0.00013972,2]
[360959196,1747163446976,-2059.0,0.00013972,2]
[360959197,1747163446987,-4165.77,0.00013972,2]
[360959198,1747163446997,-511.28,0.00013972,2]
[360959199,1747163447009,-400.0,0.00013972,2]
[360959200,1747163447018,-209.165575,0.00013972,2]
[360959201,1747163447028,-400.0,0.00013972,2]
[360959202,1747163447038,-209.165575,0.00013972,2]
[360959203,1747163447048,-209.165575,0.00013972,2]
[360959204,1747163447058,-508.46,0.00013972,2]
[360959205,1747163447069,-400.0,0.00013972,2]
[360959206,1747163447079,-424.31,0.00013972,2]
[360959207,1747163447089,-209.165575,0.00013972,2]
[360959208,1747163447099,-209.165575,0.00013972,2]
[360959209,1747163447109,-209.165575,0.00013972,2]
[360959210,1747163447119,-400.0,0.00013972,2]
[360959211,1747163447129,-400.0,0.00013972,2]
[360959212,1747163447139,-2854.55,0.00013972,2]
[360959213,1747163447148,-243.011363,0.00013972,2]
[360959214,1747163447158,-1668.71,0.00013972,2]
[360959215,1747163447168,-400.0,0.00013972,2]
[360959216,1747163447181,-408.6563908,0.00013972,2]
[360959217,1747163447191,-400.0,0.00013972,2]
[360959218,1747163447201,-400.0,0.00013972,2]
[360959219,1747163447212,-400.0,0.00013972,2]
[360959220,1747163447222,-2845.17,0.00013972,2]
[360959221,1747163447232,-400.0,0.00013972,2]
[360959222,1747163447242,-538.11,0.00013972,2]
[360959223,1747163447251,-9645.51,0.00013972,2]
[360959224,1747163447261,-400.0,0.00013972,2]
[360959225,1747163447274,-509.75,0.00013972,2]
[360959226,1747163447284,-400.0,0.00013972,2]
[360959227,1747163447294,-677.24,0.00013972,2]
[360959228,1747163447303,-400.0,0.00013972,2]
[360959229,1747163447314,-901.45,0.00013972,2]
[360959230,1747163447328,-1235.57,0.00013972,2]
[360959231,1747163447337,-400.0,0.00013972,2]
[360959232,1747163447347,-2019.7,0.00013972,2]
[360959233,1747163447357,-400.0,0.00013972,2]
[360959234,1747163447367,-400.0,0.00013972,2]
[360959235,1747163447377,-2305.27,0.00013972,2]
[360959236,1747163447387,-432.84,0.00013972,2]
[360959237,1747163447396,-1712.55,0.00013972,2]
[360959238,1747163447406,-400.0,0.00013972,2]
[360959239,1747163447415,-502.64,0.00013972,2]
[360959240,1747163447425,-3505.07,0.00013972,2]
[360959241,1747163447435,-1944.86,0.00013972,2]
[360959242,1747163447445,-400.0,0.00013972,2]
[360959243,1747163447454,-400.0,0.00013972,2]
[360959244,1747163447463,-1167.48,0.00013972,2]
[360959245,1747163447473,-400.0,0.00013972,2]
[360959246,1747163447483,-665.16,0.00013972,2]
[360959247,1747163447493,-400.0,0.00013972,2]
[360959248,1747163447503,-550.98,0.00013972,2]